{"text_format":"1","workbook":"xlsx","n_sheets":5,"sheets":["طريقة عرض التقويم","متعقب إجازات الموظفين","قائمة الموظفين","أنواع الإجازات","عطلات الشركة"],"not_rendered":{"charts":0,"images":1,"macros":1,"external_links":0,"defined_names":9,"comments":0,"pivot_tables":0},"unopened":[],"bounds":{"document_bytes":16777216,"sheet_cells":100000,"rows_first":2000,"rows_last":500,"rows_between":2000,"halvings":0,"cell_chars":16384,"cell_head_chars":4096},"cells_cut":0,"cells_raw":0,"read":"whole","date_system":"1900"}

{"sheet":"طريقة عرض التقويم","index":0,"n_rows":17,"n_cols":33,"rows_kept":17,"cut":false,"hidden":false,"merged":[[1,2,1,6],[2,4,2,6]]}
[null,"سجل حضور الموظف"]
[null,"حدد موظفاً:","الموظف 2",null,null,null,null,"Day1","Day2"]
[null,"أدخل الشهر و السنة:","Year",2017,10,null,null,"السّبت","الأحد"]
[]
[]
[null,null,"الإثنين","الثلاثاء","الأربعاء","الخميس","الجمعة","الإثنين","الثلاثاء","الأربعاء","الخميس","الجمعة","الإثنين","الثلاثاء","الأربعاء","الخميس","الجمعة","الإثنين","الثلاثاء","الأربعاء","الخميس","الجمعة","الإثنين","الثلاثاء","الإثنين","الثلاثاء","الأربعاء","الخميس","الأربعاء","الخميس","الجمعة","السّبت","الأحد"]
[null,null,"2017-10-02","2017-10-03","2017-10-04","2017-10-05","2017-10-06","2017-10-09","2017-10-10","2017-10-11","2017-10-12","2017-10-13","2017-10-16","2017-10-17","2017-10-18","2017-10-19","2017-10-20","2017-10-23","2017-10-24","2017-10-25","2017-10-26","2017-10-27","2017-10-30","2017-10-31","2017-11-27","2017-11-28","2017-11-29","2017-11-30","2017-12-27","2017-12-28","2017-12-29","2017-12-30","2017-12-31"]
[null,null,{"$f":"IFERROR(INDEX('متعقب إجازات الموظفين'!$E$4:$E$26,SMALL(IF($C$2='متعقب إجازات الموظفين'!$B$4:$B$26,IF((C$7>='متعقب إجازات الموظفين'!$C$4:$C$26)*(C$7<='متعقب إجازات الموظفين'!$D$4:$D$26),ROW()+3)),1)),\"\")","v":""},{"$f":"IFERROR(INDEX('متعقب إجازات الموظفين'!$E$4:$E$26,SMALL(IF($C$2='متعقب إجازات الموظفين'!$B$4:$B$26,IF((D$7>='متعقب إجازات الموظفين'!$C$4:$C$26)*(D$7<='متعقب إجازات الموظفين'!$D$4:$D$26),ROW()+3)),1)),\"\")","v":""},{"$f":"IFERROR(INDEX('متعقب إجازات الموظفين'!$E$4:$E$26,SMALL(IF($C$2='متعقب إجازات الموظفين'!$B$4:$B$26,IF((E$7>='متعقب إجازات الموظفين'!$C$4:$C$26)*(E$7<='متعقب إجازات الموظفين'!$D$4:$D$26),ROW()+3)),1)),\"\")","v":""},{"$f":"IFERROR(INDEX('متعقب إجازات الموظفين'!$E$4:$E$26,SMALL(IF($C$2='متعقب إجازات الموظفين'!$B$4:$B$26,IF((F$7>='متعقب إجازات الموظفين'!$C$4:$C$26)*(F$7<='متعقب إجازات الموظفين'!$D$4:$D$26),ROW()+3)),1)),\"\")","v":""},{"$f":"IFERROR(INDEX('متعقب إجازات الموظفين'!$E$4:$E$26,SMALL(IF($C$2='متعقب إجازات الموظفين'!$B$4:$B$26,IF((G$7>='متعقب إجازات الموظفين'!$C$4:$C$26)*(G$7<='متعقب إجازات الموظفين'!$D$4:$D$26),ROW()+3)),1)),\"\")","v":""},{"$f":"IFERROR(INDEX('متعقب إجازات الموظفين'!$E$4:$E$26,SMALL(IF($C$2='متعقب إجازات الموظفين'!$B$4:$B$26,IF((H$7>='متعقب إجازات الموظفين'!$C$4:$C$26)*(H$7<='متعقب إجازات الموظفين'!$D$4:$D$26),ROW()+3)),1)),\"\")","v":""},{"$f":"IFERROR(INDEX('متعقب إجازات الموظفين'!$E$4:$E$26,SMALL(IF($C$2='متعقب إجازات الموظفين'!$B$4:$B$26,IF((I$7>='متعقب إجازات الموظفين'!$C$4:$C$26)*(I$7<='متعقب إجازات الموظفين'!$D$4:$D$26),ROW()+3)),1)),\"\")","v":""},{"$f":"IFERROR(INDEX('متعقب إجازات الموظفين'!$E$4:$E$26,SMALL(IF($C$2='متعقب إجازات الموظفين'!$B$4:$B$26,IF((J$7>='متعقب إجازات الموظفين'!$C$4:$C$26)*(J$7<='متعقب إجازات الموظفين'!$D$4:$D$26),ROW()+3)),1)),\"\")","v":""},{"$f":"IFERROR(INDEX('متعقب إجازات الموظفين'!$E$4:$E$26,SMALL(IF($C$2='متعقب إجازات الموظفين'!$B$4:$B$26,IF((K$7>='متعقب إجازات الموظفين'!$C$4:$C$26)*(K$7<='متعقب إجازات الموظفين'!$D$4:$D$26),ROW()+3)),1)),\"\")","v":""},{"$f":"IFERROR(INDEX('متعقب إجازات الموظفين'!$E$4:$E$26,SMALL(IF($C$2='متعقب إجازات الموظفين'!$B$4:$B$26,IF((L$7>='متعقب إجازات الموظفين'!$C$4:$C$26)*(L$7<='متعقب إجازات الموظفين'!$D$4:$D$26),ROW()+3)),1)),\"\")","v":""},{"$f":"IFERROR(INDEX('متعقب إجازات الموظفين'!$E$4:$E$26,SMALL(IF($C$2='متعقب إجازات الموظفين'!$B$4:$B$26,IF((M$7>='متعقب إجازات الموظفين'!$C$4:$C$26)*(M$7<='متعقب إجازات الموظفين'!$D$4:$D$26),ROW()+3)),1)),\"\")","v":""},{"$f":"IFERROR(INDEX('متعقب إجازات الموظفين'!$E$4:$E$26,SMALL(IF($C$2='متعقب إجازات الموظفين'!$B$4:$B$26,IF((N$7>='متعقب إجازات الموظفين'!$C$4:$C$26)*(N$7<='متعقب إجازات الموظفين'!$D$4:$D$26),ROW()+3)),1)),\"\")","v":""},{"$f":"IFERROR(INDEX('متعقب إجازات الموظفين'!$E$4:$E$26,SMALL(IF($C$2='متعقب إجازات الموظفين'!$B$4:$B$26,IF((O$7>='متعقب إجازات الموظفين'!$C$4:$C$26)*(O$7<='متعقب إجازات الموظفين'!$D$4:$D$26),ROW()+3)),1)),\"\")","v":""},{"$f":"IFERROR(INDEX('متعقب إجازات الموظفين'!$E$4:$E$26,SMALL(IF($C$2='متعقب إجازات الموظفين'!$B$4:$B$26,IF((P$7>='متعقب إجازات الموظفين'!$C$4:$C$26)*(P$7<='متعقب إجازات الموظفين'!$D$4:$D$26),ROW()+3)),1)),\"\")","v":""},{"$f":"IFERROR(INDEX('متعقب إجازات الموظفين'!$E$4:$E$26,SMALL(IF($C$2='متعقب إجازات الموظفين'!$B$4:$B$26,IF((Q$7>='متعقب إجازات الموظفين'!$C$4:$C$26)*(Q$7<='متعقب إجازات الموظفين'!$D$4:$D$26),ROW()+3)),1)),\"\")","v":""},{"$f":"IFERROR(INDEX('متعقب إجازات الموظفين'!$E$4:$E$26,SMALL(IF($C$2='متعقب إجازات الموظفين'!$B$4:$B$26,IF((R$7>='متعقب إجازات الموظفين'!$C$4:$C$26)*(R$7<='متعقب إجازات الموظفين'!$D$4:$D$26),ROW()+3)),1)),\"\")","v":""},{"$f":"IFERROR(INDEX('متعقب إجازات الموظفين'!$E$4:$E$26,SMALL(IF($C$2='متعقب إجازات الموظفين'!$B$4:$B$26,IF((S$7>='متعقب إجازات الموظفين'!$C$4:$C$26)*(S$7<='متعقب إجازات الموظفين'!$D$4:$D$26),ROW()+3)),1)),\"\")","v":""},{"$f":"IFERROR(INDEX('متعقب إجازات الموظفين'!$E$4:$E$26,SMALL(IF($C$2='متعقب إجازات الموظفين'!$B$4:$B$26,IF((T$7>='متعقب إجازات الموظفين'!$C$4:$C$26)*(T$7<='متعقب إجازات الموظفين'!$D$4:$D$26),ROW()+3)),1)),\"\")","v":""},{"$f":"IFERROR(INDEX('متعقب إجازات الموظفين'!$E$4:$E$26,SMALL(IF($C$2='متعقب إجازات الموظفين'!$B$4:$B$26,IF((U$7>='متعقب إجازات الموظفين'!$C$4:$C$26)*(U$7<='متعقب إجازات الموظفين'!$D$4:$D$26),ROW()+3)),1)),\"\")","v":""},{"$f":"IFERROR(INDEX('متعقب إجازات الموظفين'!$E$4:$E$26,SMALL(IF($C$2='متعقب إجازات الموظفين'!$B$4:$B$26,IF((V$7>='متعقب إجازات الموظفين'!$C$4:$C$26)*(V$7<='متعقب إجازات الموظفين'!$D$4:$D$26),ROW()+3)),1)),\"\")","v":""},{"$f":"IFERROR(INDEX('متعقب إجازات الموظفين'!$E$4:$E$26,SMALL(IF($C$2='متعقب إجازات الموظفين'!$B$4:$B$26,IF((W$7>='متعقب إجازات الموظفين'!$C$4:$C$26)*(W$7<='متعقب إجازات الموظفين'!$D$4:$D$26),ROW()+3)),1)),\"\")","v":""},{"$f":"IFERROR(INDEX('متعقب إجازات الموظفين'!$E$4:$E$26,SMALL(IF($C$2='متعقب إجازات الموظفين'!$B$4:$B$26,IF((X$7>='متعقب إجازات الموظفين'!$C$4:$C$26)*(X$7<='متعقب إجازات الموظفين'!$D$4:$D$26),ROW()+3)),1)),\"\")","v":""},{"$f":"IFERROR(INDEX('متعقب إجازات الموظفين'!$E$4:$E$26,SMALL(IF($C$2='متعقب إجازات الموظفين'!$B$4:$B$26,IF((Y$7>='متعقب إجازات الموظفين'!$C$4:$C$26)*(Y$7<='متعقب إجازات الموظفين'!$D$4:$D$26),ROW()+3)),1)),\"\")","v":""},{"$f":"IFERROR(INDEX('متعقب إجازات الموظفين'!$E$4:$E$26,SMALL(IF($C$2='متعقب إجازات الموظفين'!$B$4:$B$26,IF((Z$7>='متعقب إجازات الموظفين'!$C$4:$C$26)*(Z$7<='متعقب إجازات الموظفين'!$D$4:$D$26),ROW()+3)),1)),\"\")","v":""},{"$f":"IFERROR(INDEX('متعقب إجازات الموظفين'!$E$4:$E$26,SMALL(IF($C$2='متعقب إجازات الموظفين'!$B$4:$B$26,IF((AA$7>='متعقب إجازات الموظفين'!$C$4:$C$26)*(AA$7<='متعقب إجازات الموظفين'!$D$4:$D$26),ROW()+3)),1)),\"\")","v":"إجازة مرضية"},{"$f":"IFERROR(INDEX('متعقب إجازات الموظفين'!$E$4:$E$26,SMALL(IF($C$2='متعقب إجازات الموظفين'!$B$4:$B$26,IF((AB$7>='متعقب إجازات الموظفين'!$C$4:$C$26)*(AB$7<='متعقب إجازات الموظفين'!$D$4:$D$26),ROW()+3)),1)),\"\")","v":"إجازة مرضية"},{"$f":"IFERROR(INDEX('متعقب إجازات الموظفين'!$E$4:$E$26,SMALL(IF($C$2='متعقب إجازات الموظفين'!$B$4:$B$26,IF((AC$7>='متعقب إجازات الموظفين'!$C$4:$C$26)*(AC$7<='متعقب إجازات الموظفين'!$D$4:$D$26),ROW()+3)),1)),\"\")","v":""},{"$f":"IFERROR(INDEX('متعقب إجازات الموظفين'!$E$4:$E$26,SMALL(IF($C$2='متعقب إجازات الموظفين'!$B$4:$B$26,IF((AD$7>='متعقب إجازات الموظفين'!$C$4:$C$26)*(AD$7<='متعقب إجازات الموظفين'!$D$4:$D$26),ROW()+3)),1)),\"\")","v":""},{"$f":"IFERROR(INDEX('متعقب إجازات الموظفين'!$E$4:$E$26,SMALL(IF($C$2='متعقب إجازات الموظفين'!$B$4:$B$26,IF((AE$7>='متعقب إجازات الموظفين'!$C$4:$C$26)*(AE$7<='متعقب إجازات الموظفين'!$D$4:$D$26),ROW()+3)),1)),\"\")","v":""},{"$f":"IFERROR(INDEX('متعقب إجازات الموظفين'!$E$4:$E$26,SMALL(IF($C$2='متعقب إجازات الموظفين'!$B$4:$B$26,IF((AF$7>='متعقب إجازات الموظفين'!$C$4:$C$26)*(AF$7<='متعقب إجازات الموظفين'!$D$4:$D$26),ROW()+3)),1)),\"\")","v":""},{"$f":"IFERROR(INDEX('متعقب إجازات الموظفين'!$E$4:$E$26,SMALL(IF($C$2='متعقب إجازات الموظفين'!$B$4:$B$26,IF((AG$7>='متعقب إجازات الموظفين'!$C$4:$C$26)*(AG$7<='متعقب إجازات الموظفين'!$D$4:$D$26),ROW()+3)),1)),\"\")","v":""}]
[]
[]
[]
[]
[]
[]
[]
[]
[null,null,null,null,null,null,null,null,null,null,null,null,null,null,null,null,null,null,null,null,null,null,null,"من هنا حدث الخطأ"]

{"sheet":"متعقب إجازات الموظفين","index":1,"n_rows":26,"n_cols":6,"rows_kept":26,"cut":false,"hidden":true,"merged":[]}
[null,"متعقب إجازات الموظفين"]
[]
[null,"اسم الموظف","تاريخ البداية","تاريخ النهاية","نوع الإجازة","الأيام"]
[null,"الموظف 1",{"$f":"DATE(YEAR(TODAY()),1,3)","v":"2018-01-03"},{"$f":"DATE(YEAR(TODAY()),1,3)","v":"2018-01-03"},"إجازة مرضية",{"$f":"NETWORKDAYS('متعقب إجازات الموظفين'!$C4,'متعقب إجازات الموظفين'!$D4,lstHolidays)","v":1}]
[null,"الموظف 2",{"$f":"DATE(YEAR(TODAY()),1,17)","v":"2018-01-17"},{"$f":"DATE(YEAR(TODAY()),1,18)","v":"2018-01-18"},"استئذان",{"$f":"NETWORKDAYS('متعقب إجازات الموظفين'!$C5,'متعقب إجازات الموظفين'!$D5,lstHolidays)","v":2}]
[null,"الموظف 3",{"$f":"DATE(YEAR(TODAY()),1,18 )","v":"2018-01-18"},{"$f":"DATE(YEAR(TODAY()),1,21)","v":"2018-01-21"},"أخرى",{"$f":"NETWORKDAYS('متعقب إجازات الموظفين'!$C6,'متعقب إجازات الموظفين'!$D6,lstHolidays)","v":2}]
[null,"الموظف 5",{"$f":"DATE(YEAR(TODAY())-1,12,10 )","v":"2017-12-10"},{"$f":"DATE(YEAR(TODAY())-1,12,16)","v":"2017-12-16"},"حداد",{"$f":"NETWORKDAYS('متعقب إجازات الموظفين'!$C7,'متعقب إجازات الموظفين'!$D7,lstHolidays)","v":5}]
[null,"الموظف 4",{"$f":"DATE(YEAR(TODAY())-1,12,1  )","v":"2017-12-01"},{"$f":"DATE(YEAR(TODAY())-1,12,2)","v":"2017-12-02"},"إجازة مرضية",{"$f":"NETWORKDAYS('متعقب إجازات الموظفين'!$C8,'متعقب إجازات الموظفين'!$D8,lstHolidays)","v":1}]
[null,"الموظف 1",{"$f":"DATE(YEAR(TODAY())-1,11,14  )","v":"2017-11-14"},{"$f":"DATE(YEAR(TODAY())-1,11,18)","v":"2017-11-18"},"العطلة",{"$f":"NETWORKDAYS('متعقب إجازات الموظفين'!$C9,'متعقب إجازات الموظفين'!$D9,lstHolidays)","v":4}]
[null,"الموظف 4",{"$f":"DATE(YEAR(TODAY()),1,31 )","v":"2018-01-31"},{"$f":"DATE(YEAR(TODAY()),2,4)","v":"2018-02-04"},"إجازة مرضية",{"$f":"NETWORKDAYS('متعقب إجازات الموظفين'!$C10,'متعقب إجازات الموظفين'!$D10,lstHolidays)","v":3}]
[null,"الموظف 4",{"$f":"DATE(YEAR(TODAY())-1,12,1  )","v":"2017-12-01"},{"$f":"DATE(YEAR(TODAY())-1,12,6)","v":"2017-12-06"},"أخرى",{"$f":"NETWORKDAYS('متعقب إجازات الموظفين'!$C11,'متعقب إجازات الموظفين'!$D11,lstHolidays)","v":4}]
[null,"الموظف 4",{"$f":"DATE(YEAR(TODAY())-1,12,10  )","v":"2017-12-10"},{"$f":"DATE(YEAR(TODAY())-1,12,16)","v":"2017-12-16"},"أخرى",{"$f":"NETWORKDAYS('متعقب إجازات الموظفين'!$C12,'متعقب إجازات الموظفين'!$D12,lstHolidays)","v":5}]
[null,"الموظف 2",{"$f":"DATE(YEAR(TODAY()),1,13 )","v":"2018-01-13"},{"$f":"DATE(YEAR(TODAY()),1,15)","v":"2018-01-15"},"غياب",{"$f":"NETWORKDAYS('متعقب إجازات الموظفين'!$C13,'متعقب إجازات الموظفين'!$D13,lstHolidays)","v":1}]
[null,"الموظف 5",{"$f":"DATE(YEAR(TODAY()),1,15 )","v":"2018-01-15"},{"$f":"DATE(YEAR(TODAY()),1,20)","v":"2018-01-20"},"إجازة مرضية",{"$f":"NETWORKDAYS('متعقب إجازات الموظفين'!$C14,'متعقب إجازات الموظفين'!$D14,lstHolidays)","v":5}]
[null,"الموظف 2",{"$f":"DATE(YEAR(TODAY()),6,13 )","v":"2018-06-13"},{"$f":"DATE(YEAR(TODAY()),6,15)","v":"2018-06-15"},"تبديل",{"$f":"NETWORKDAYS('متعقب إجازات الموظفين'!$C15,'متعقب إجازات الموظفين'!$D15,lstHolidays)","v":3}]
[null,"الموظف 5",{"$f":"DATE(YEAR(TODAY()),1,27 )","v":"2018-01-27"},{"$f":"DATE(YEAR(TODAY()),2,3)","v":"2018-02-03"},"حداد",{"$f":"NETWORKDAYS('متعقب إجازات الموظفين'!$C16,'متعقب إجازات الموظفين'!$D16,lstHolidays)","v":5}]
[null,"الموظف 3",{"$f":"DATE(YEAR(TODAY()),1,17 )","v":"2018-01-17"},{"$f":"DATE(YEAR(TODAY()),1,18)","v":"2018-01-18"},"العطلة",{"$f":"NETWORKDAYS('متعقب إجازات الموظفين'!$C17,'متعقب إجازات الموظفين'!$D17,lstHolidays)","v":2}]
[null,"الموظف 3",{"$f":"DATE(YEAR(TODAY())-1,12,12 )","v":"2017-12-12"},{"$f":"DATE(YEAR(TODAY())-1,12,17)","v":"2017-12-17"},"حداد",{"$f":"NETWORKDAYS('متعقب إجازات الموظفين'!$C18,'متعقب إجازات الموظفين'!$D18,lstHolidays)","v":4}]
[null,"الموظف 1",{"$f":"DATE(YEAR(TODAY())-1,12,21  )","v":"2017-12-21"},{"$f":"DATE(YEAR(TODAY())-1,12,22)","v":"2017-12-22"},"أخرى",{"$f":"NETWORKDAYS('متعقب إجازات الموظفين'!$C19,'متعقب إجازات الموظفين'!$D19,lstHolidays)","v":2}]
[null,"الموظف 1",{"$f":"DATE(YEAR(TODAY())-1,12,14  )","v":"2017-12-14"},{"$f":"DATE(YEAR(TODAY())-1,12,16)","v":"2017-12-16"},"العطلة",{"$f":"NETWORKDAYS('متعقب إجازات الموظفين'!$C20,'متعقب إجازات الموظفين'!$D20,lstHolidays)","v":2}]
[null,"الموظف 2",{"$f":"DATE(YEAR(TODAY())-1,11,29  )","v":"2017-11-29"},{"$f":"DATE(YEAR(TODAY())-1,12,6)","v":"2017-12-06"},"استثناء",{"$f":"NETWORKDAYS('متعقب إجازات الموظفين'!$C21,'متعقب إجازات الموظفين'!$D21,lstHolidays)","v":6}]
[null,"الموظف 5",{"$f":"DATE(YEAR(TODAY())-1,12,3  )","v":"2017-12-03"},{"$f":"DATE(YEAR(TODAY())-1,12,7)","v":"2017-12-07"},"العطلة",{"$f":"NETWORKDAYS('متعقب إجازات الموظفين'!$C22,'متعقب إجازات الموظفين'!$D22,lstHolidays)","v":4}]
[null,"الموظف 1",{"$f":"DATE(YEAR(TODAY()),1,31 )","v":"2018-01-31"},{"$f":"DATE(YEAR(TODAY()),2,2)","v":"2018-02-02"},"حداد",{"$f":"NETWORKDAYS('متعقب إجازات الموظفين'!$C23,'متعقب إجازات الموظفين'!$D23,lstHolidays)","v":3}]
[null,"الموظف 1",{"$f":"DATE(YEAR(TODAY())-1,11,24 )","v":"2017-11-24"},{"$f":"DATE(YEAR(TODAY())-1,11,29)","v":"2017-11-29"},"إجازة مرضية",{"$f":"NETWORKDAYS('متعقب إجازات الموظفين'!$C24,'متعقب إجازات الموظفين'!$D24,lstHolidays)","v":4}]
[null,"الموظف 2",{"$f":"DATE(YEAR(TODAY()),12,5 )","v":"2018-12-05"},{"$f":"DATE(YEAR(TODAY()),12,9)","v":"2018-12-09"},"العطلة",{"$f":"NETWORKDAYS('متعقب إجازات الموظفين'!$C25,'متعقب إجازات الموظفين'!$D25,lstHolidays)","v":3}]
[null,"الموظف 5",{"$f":"DATE(YEAR(TODAY()),4,11 )","v":"2018-04-11"},{"$f":"DATE(YEAR(TODAY()),4,19)","v":"2018-04-19"},"العطلة",{"$f":"NETWORKDAYS('متعقب إجازات الموظفين'!$C26,'متعقب إجازات الموظفين'!$D26,lstHolidays)","v":7}]

{"sheet":"قائمة الموظفين","index":2,"n_rows":8,"n_cols":2,"rows_kept":8,"cut":false,"hidden":true,"merged":[]}
[null,"قائمة الموظفين"]
[]
[null,"أسماء الموظفين"]
[null,"الموظف 1"]
[null,"الموظف 2"]
[null,"الموظف 3"]
[null,"الموظف 4"]
[null,"الموظف 5"]

{"sheet":"أنواع الإجازات","index":3,"n_rows":13,"n_cols":10,"rows_kept":13,"cut":false,"hidden":true,"merged":[]}
[null,"أنواع الإجازات",null,null,null,null,null,null,null,"السّبت"]
[null,null,null,null,null,null,null,null,null,"الأحد"]
[null,"قائمة أنواع الإجازات",null,null,null,null,null,null,null,"الإثنين"]
[null,"إجازة مرضية",null,null,null,null,null,null,null,"الثلاثاء"]
[null,"إجازة عادية",null,null,null,null,null,null,null,"الأربعاء"]
[null,"حداد",null,null,null,null,null,null,null,"الخميس"]
[null,"غياب",null,null,null,null,null,null,null,"الجمعة"]
[null,"تأخير"]
[null,"استئذان"]
[null,"مرافق"]
[null,"استثناء"]
[null,"طارئة"]
[null,"تبديل"]

{"sheet":"عطلات الشركة","index":4,"n_rows":7,"n_cols":3,"rows_kept":7,"cut":false,"hidden":true,"merged":[]}
[null,"عطلات الشركة"]
[]
[null,"عطلات الشركة","الوصف"]
[null,{"$f":"DATE(YEAR(TODAY()),11,24)","v":"2018-11-24"},"عيد الفطر"]
[null,{"$f":"DATE(YEAR(TODAY()),11,25)","v":"2018-11-25"},"عيد الفطر"]
[null,{"$f":"DATE(YEAR(TODAY()),12,24)","v":"2018-12-24"},"عيد الأضحى"]
[null,{"$f":"DATE(YEAR(TODAY()),12,25)","v":"2018-12-25"},"عيد الأضحى"]